Cogmind - Beta 14 @@@ ROGUE MODE // 2024.08.09 @ 16:59:32 Player: Akire Result: Self-destructed Performance ------------- Evolutions (1) 500 Regions Visited (4) 800 Robots Destroyed (44) 220 Value Destroyed (1200) 1200 Prototype IDs (3) 60 Alien Tech Used (0) 0 Bonus (0) 0 TOTAL SCORE: 2780 Bonus ------- None Cogmind --------- Core Integrity 102/400 Matter 163/300 Energy 265/265 System Corruption 0% Temperature Cool (0) Movement Rolling (125) Ox3 Location -9/Exiles Parts ------- > --- POWER (1) -------- Improved Ion Engine > --- PROPULSION (3) --- Wheel Wheel > --- UTILITY (3) ------ High-capacity Storage Unit Signal Interpreter Medium Armor Plating > --- WEAPON (2) ------- Particle Gun Particle Cannon > --- INVENTORY (20) --- Improved Heat Sink Visual Processing Unit Sensor Array Medium Armor Plating Medium Armor Plating Medium Armor Plating EMP Blaster Grenade Launcher Datajack Peak State ------------ > --- POWER ------------ Improved Ion Engine > --- PROPULSION ------- Aluminum Leg Aluminum Leg Aluminum Leg > --- UTILITY ---------- High-capacity Storage Unit Signal Interpreter Shield Generator > --- WEAPON ----------- Heavy Assault Rifle Light Cannon > --- INVENTORY -------- Improved Ion Engine Light Treads Light Treads Light Treads Improved Heat Sink Visual Processing Unit Sensor Array Medium Armor Plating Medium Armor Plating Medium Armor Plating Medium Armor Plating Beam Rifle Particle Gun Particle Cannon Heavy Assault Rifle EMP Blaster Grenade Launcher [Rating: 15] Favorites ----------- Power Improved Ion Engine Engine Improved Ion Engine Propulsion Flight Unit Treads Light Treads Leg Aluminum Leg Wheel Wheel Hover Unit Improved Hover Unit Flight Unit Flight Unit Utility High-capacity Storage Unit Device Shield Generator Storage High-capacity Storage Unit Processor Signal Interpreter Protection Medium Armor Plating Weapon Light Cannon Energy Gun Medium Laser Energy Cannon Particle Cannon Ballistic Gun Autogun Ballistic Cannon Light Cannon Launcher Grenade Launcher Build | -11 -10 -9 -9 -9 ------- Run | Yrd Mat Mat Min Exi Slots Evolved 2 | . . 2 . . Power . | . . . . . Propulsion 1 | . . 1 . . Utility 1 | . . 1 . . Weapon . | . . . . . Parts Attached 48 | 6 19 12 10 1 Power 7 | 1 4 1 1 . Engine 7 | 1 4 1 1 . Core . | . . . . . Reactor . | . . . . . Propulsion 17 | 2 5 6 3 1 Treads 3 | . . 3 . . Leg 4 | . . 3 1 . Wheel 6 | 2 1 . 2 1 Hover 2 | . 2 . . . Flight 2 | . 2 . . . Utility 9 | 1 4 3 1 . Device 3 | . 1 2 . . Storage 4 | 1 3 . . . Processor 1 | . . 1 . . Hackware . | . . . . . Protection 1 | . . . 1 . Artifact . | . . . . . Weapon 15 | 2 6 2 5 . Energy Gun 4 | 2 . . 2 . Energy Cannon 1 | . . . 1 . Ballistic Gun 6 | . 4 1 1 . Ballistic Cannon 3 | . 2 1 . . Launcher 1 | . . . 1 . Special Weapon . | . . . . . Impact Weapon . | . . . . . Slashing Weapon . | . . . . . Piercing Weapon . | . . . . . Special Melee Weapon . | . . . . . Unidentified Prototypes . | . . . . . Parts Lost 14 | . . 5 9 . Power 1 | . . . 1 . Propulsion 4 | . . 1 3 . Utility 3 | . . 2 1 . Weapon 6 | . . 2 4 . Highest Loss Streak 9 | . . 2 9 . To Critical Strikes . | . . . . . Average Slot Usage (%) 94 | . 98 92 80 88 Engine 12 | . 13 11 8 11 Treads 3 | . . 4 16 . Leg 7 | . . 19 2 . Wheel 2 | . 2 . 1 21 Hover 4 | . 9 . . . Flight 9 | . 16 3 . . Device 10 | . 12 10 5 . Storage 12 | . 15 11 11 11 Processor 5 | . . 11 11 11 Protection 1 | . . . 5 11 Energy Gun 1 | . 2 . 2 11 Ballistic Gun 12 | . 17 9 5 . Ballistic Cannon 8 | . 8 12 5 . Peak Build Rating 15 | 6 13 15 14 13 Average Rating 11 | 4 10 13 11 12 On Entrance 9 | . 6 12 14 14 Naked Turns . | . . . . . Heaviest Build 61 | 14 55 55 61 61 Greatest Support 60 | 26 26 60 60 20 Greatest Overweight (x) 16 | 1 6 13 16 3 Average Overweight (x) 2 | . 3 1 2 3 Largest Inventory Capacity 20 | 8 20 20 20 20 Average Capacity 18 | 7 17 20 20 20 Most Carried 17 | 5 17 17 15 10 Average Carried 11 | 2 10 12 12 9 Final Capacity 20 | 8 20 20 20 20 Final Carried 15 | 3 14 15 9 9 Class Distribution -------------------- 63% | Mutant 36% | Scavenger-Mutant Dominant Class ---------------- Mutant | -10/Materials Scavenger-Mutant | -9/Materials Scavenger-Mutant | -9/Mines Scavenger-Mutant | -9/Exiles Resources | -11 -10 -9 -9 -9 ----------- Run | Yrd Mat Mat Min Exi Matter Collected 1169 | 236 359 475 99 . Remotely . | . . . . . Salvage Created 1391 | . 390 741 260 . Parts 94 | . 27 52 15 . Haulers Intercepted . | . . . . . Recyclers Shooed 2 | . . . 2 . Parts Field Recycled . | . . . . . Retrieved Matter . | . . . . . Parts Self-Destructed . | . . . . . Prevented . | . . . . . Kills | -11 -10 -9 -9 -9 ------- Run | Yrd Mat Mat Min Exi Combat Hostiles Destroyed 34 | . 10 20 4 . Guns 16 | . 4 12 . . Cannons 18 | . 6 8 4 . Classes Destroyed 9 | . 4 4 1 . Worker 1 | . . 1 . . Builder 1 | . . . 1 . Tunneler 1 | . . 1 . . Recycler 2 | . 1 . 1 . Watcher 5 | . 3 2 . . Swarmer 7 | . 4 3 . . Grunt 23 | . 6 13 4 . Brawler 1 | . . 1 . . Sentry 3 | . . 3 . . Best Kill Streak 7 | . 3 7 4 . Combat Bots Only 4 | . 3 4 3 . Max Kills in Single Turn 2 | . 1 2 1 . Gunslinging . | . . . . . Exploded . | . . . . . Melee . | . . . . . Uniques/NPCs Destroyed . | . . . . . Combat | -11 -10 -9 -9 -9 -------- Run | Yrd Mat Mat Min Exi Hostile Shots Fired 190 | . 56 80 54 . Missed 44 | . 11 19 14 . Damage Taken 2040 | . 363 537 1140 . Core 370 | . 72 94 204 . Absorbed by Shields 402 | . 123 167 112 . Core Remaining (%) 85 | 100 71 . . . Volleys Fired 120 | . 36 53 31 . Largest 2 | . 2 2 2 . Hottest 133 | . 100 70 133 . Shots Fired 222 | . 73 97 52 . Gun 126 | . 55 42 29 . Cannon 92 | . 18 55 19 . Launcher 4 | . . . 4 . Special . | . . . . . Kinetic 195 | . 61 97 37 . Thermal 23 | . 12 . 11 . Explosive 4 | . . . 4 . Electromagnetic . | . . . . . Robot Hit Streak 17 | . 8 17 6 . Robot Miss Streak 6 | . 5 3 6 . Penetration Max . | . . . . . Secondary Targets . | . . . . . Shots Hit Robots 121 | . 39 56 26 . Core Hits 64 | . 22 30 12 . Critical Kills . | . . . . . Critical Parts Destroyed . | . . . . . Critical Strikes 3 | . . 2 1 . Burn 1 | . . . 1 . Blast 2 | . . 2 . . Melee Attacks . | . . . . . Impact . | . . . . . Slashing . | . . . . . Piercing . | . . . . . Sneak Attacks . | . . . . . Combat Hostiles . | . . . . . Follow-up Attacks . | . . . . . Damage Inflicted 2097 | . 673 953 471 . Guns 1100 | . 460 473 167 . Cannons 890 | . 208 480 202 . Explosions 89 | . . . 89 . Melee . | . . . . . Ramming 18 | . 5 . 13 . Kinetic 1841 | . 604 953 284 . Thermal 149 | . 64 . 85 . Explosive 89 | . . . 89 . Electromagnetic . | . . . . . Impact . | . . . . . Slashing . | . . . . . Piercing . | . . . . . Highest Corruption 1 | . 1 . . . Average Corruption 1 | . 1 . . . Corruption Purged . | . . . . . Corruption Blocked . | . . . . . Effects 6 | . 6 . . . Message Errors 1 | . 1 . . . Matter Fused 3 | . 3 . . . Heat Flow Errors 1 | . 1 . . . Misfires 1 | . 1 . . . Overload Shots . | . . . . . Overflow Damage 16 | . 12 4 . . Projectiles 16 | . 12 4 . . Explosions . | . . . . . Melee . | . . . . . Knockbacks 9 | . 2 3 4 . Impact 1 | . . . 1 . Kinetic 8 | . 2 3 3 . Secondary . | . . . . . Self-Inflicted Damage 36 | . 2 . 34 . Shots 3 | . . . 3 . Rammed 2 | . 1 . 1 . Targets Rammed 2 | . 1 . 1 . Kicked . | . . . . . Crushed . | . . . . . Highest Temperature 261 | . 261 51 199 . Average Temperature 53 | . 60 12 80 . Received Heat Transfer 411 | . 135 254 22 . Siege Activations . | . . . . . Robots Corrupted . | . . . . . Combat Hostiles . | . . . . . Parts Fried . | . . . . . Impact Corruptions . | . . . . . Robots Melted . | . . . . . Combat Hostiles . | . . . . . Parts Melted . | . . . . . Heat Transferred 444 | . 185 . 259 . Parts Sabotaged . | . . . . . Parts Stolen . | . . . . . Parts Stripped . | . . . . . Power Chain Reactions . | . . . . . Alert | -11 -10 -9 -9 -9 ------- Run | Yrd Mat Mat Min Exi Peak Influence 224 | . 139 224 147 . Initial 72 | . . . 72 . Average 62 | . 40 86 89 . Maximum Alert Level 1 | . . 1 . . Low Security (%) 96 | 100 100 91 100 . Level 1 3 | . . 8 . . Level 2 . | . . . . . Level 3 . | . . . . . Level 4 . | . . . . . Level 5 . | . . . . . High Security . | . . . . . Max Security . | . . . . . Squads Dispatched 7 | . 2 4 1 . Investigation 2 | . 1 1 . . Extermination . | . . . . . Reinforcement 5 | . 1 3 1 . Assault . | . . . . . Garrison . | . . . . . Intercept . | . . . . . Searches Triggered . | . . . . . Construction Impeded 1 | . . . 1 . Haulers Reinforced . | . . . . . Active Scanning Responses . | . . . . . Cargo Convoy Interrupts . | . . . . . Stealth | -11 -10 -9 -9 -9 --------- Run | Yrd Mat Mat Min Exi Distress Signals 6 | . 2 4 . . Communications Jammed . | . . . . . Distress Signals . | . . . . . Times Spotted 49 | . 16 28 5 . Peak Tracking Total 6 | . 4 6 3 . Tactical Retreats 2 | . 1 1 . . Traps | -11 -10 -9 -9 -9 ------- Run | Yrd Mat Mat Min Exi Traps Triggered 1 | . 1 . . . Indirectly . | . . . . . Trap Hack Attempts . | . . . . . Triggered . | . . . . . Disarmed . | . . . . . Reprogrammed . | . . . . . Reused . | . . . . . Traps Extracted . | . . . . . Installed . | . . . . . Triggered . | . . . . . Machines | -11 -10 -9 -9 -9 ---------- Run | Yrd Mat Mat Min Exi Machines Disabled 2 | . 1 1 . . Max in Single Turn 1 | . 1 1 . . Machines Repaired . | . . . . . Machines Dismantled . | . . . . . Machines Sabotaged . | . . . . . Overloaded Fab Kills . | . . . . . Hacking | -11 -10 -9 -9 -9 --------- Run | Yrd Mat Mat Min Exi Machines Accessed 14 | . 8 5 . 1 Terminals 7 | . 5 2 . . Fabricators . | . . . . . Repair Stations 2 | . 1 1 . . Recycling Units 3 | . 2 1 . . Scanalyzers 1 | . . 1 . . Garrison Access . | . . . . . Total Hacks 71 | . 24 24 . 23 Successful 51 | . 15 13 . 23 Failed 20 | . 9 11 . . Catastrophic 2 | . 2 . . . Database Lockouts . | . . . . . Manual . | . . . . . Terminals 27 | . 12 15 . . Fabricators . | . . . . . Repair Stations 6 | . 2 4 . . Recycling Units 12 | . 10 2 . . Scanalyzers 3 | . . 3 . . Garrison Access . | . . . . . Terminal Hacks 39 | . 10 6 . 23 Record 33 | . 4 6 . 23 Prototype ID Bank 2 | . 2 . . . Emergency Access Points 1 | . 1 . . . Dispatch Records 1 | . 1 . . . Maintenance Status 1 | . 1 . . . Zone Layout 1 | . 1 . . . Fabricator Hacks . | . . . . . Repair Station Hacks 3 | . 1 2 . . Scan Component 3 | . 1 2 . . Recycling Unit Hacks 6 | . 4 2 . . Process 1 | . 1 . . . Report Inventory 3 | . 2 1 . . Retrieve Matter 1 | . 1 . . . Retrieve Components 1 | . . 1 . . Scanalyzer 3 | . . 3 . . Insert Component 2 | . . 2 . . Analyze 1 | . . 1 . . Garrison Access Hacks . | . . . . . Unauthorized Hacks . | . . . . . Terminals . | . . . . . Fabricators . | . . . . . Repair Stations . | . . . . . Recycling Units . | . . . . . Scanalyzers . | . . . . . Garrison Access . | . . . . . Data Cores Recovered . | . . . . . Used . | . . . . . Hacking Detections 11 | . 7 4 . . Full Trace Events 6 | . 2 4 . . Feedback Events 1 | . 1 . . . Corruption 1 | . 1 . . . Feedback Blocked . | . . . . . Robot Schematics Acquired . | . . . . . Robots Built . | . . . . . Authchips . | . . . . . Time . | . . . . . Total Robot Build Rating . | . . . . . Part Schematics Acquired 1 | . . 1 . . Parts Built . | . . . . . Authchips . | . . . . . Time . | . . . . . Total Part Build Rating . | . . . . . Parts Repaired . | . . . . . Time . | . . . . . Parts Recycled . | . . . . . Recycled Matter 210 | . 210 . . . Retrieved Matter 210 | . 210 . . . Retrieved Components 10 | . . 10 . . Parts Scanalyzed 1 | . . 1 . . Part Schematics Acquired 1 | . . 1 . . Parts Damaged . | . . . . . Bothacking | -11 -10 -9 -9 -9 ------------ Run | Yrd Mat Mat Min Exi Used RIF Installer . | . . . . . Robots Hacked . | . . . . . Non-combat . | . . . . . Combat . | . . . . . Robot Hacks Applied . | . . . . . Relay Couplers Released . | . . . . . Fabnet Peak Effective % . | . . . . . Robots Rewired . | . . . . . Allies Hacked . | . . . . . Hacks Repelled . | . . . . . Allies | -11 -10 -9 -9 -9 -------- Run | Yrd Mat Mat Min Exi Total Allies . | . . . . . Largest Group . | . . . . . Highest-Rated Group . | . . . . . Highest-Rated Ally . | . . . . . Total Orders . | . . . . . Ally Attacks . | . . . . . Total Damage . | . . . . . Kills . | . . . . . Allies Corrupted . | . . . . . Allies Melted . | . . . . . Intel | -11 -10 -9 -9 -9 ------- Run | Yrd Mat Mat Min Exi Robot Analysis Total . | . . . . . Derelict Logs Recovered . | . . . . . Drone Launches . | . . . . . Drone Recoveries . | . . . . . Exploration | -11 -10 -9 -9 -9 ------------- Run | Yrd Mat Mat Min Exi Turns Passed 3901 | 63 1840 1405 340 253 Spaces Moved 1423 | 60 565 497 101 200 Core 28 | 18 1 . 9 . Treads 171 | . . 104 67 . Legs 360 | . . 354 6 . Wheels 378 | 42 117 . 19 200 Hover 259 | . 259 . . . Flight 227 | . 188 39 . . Fastest Speed 50 | 50 90 160 125 125 Average Speed 229 | 81 277 233 237 125 Slowest Speed 1080 | 100 517 1080 850 125 Overloaded Moves . | . . . . . Propulsion Burnouts . | . . . . . Robots Hopped . | . . . . . Cave-ins Triggered . | . . . . . Exploration Rate (%) 43 | 4 90 38 31 56 Regions Visited 4 Branch Regions 2 Pre-discovered Areas 1 | . . . . 1 Known Exits Taken 2 | . . 1 1 . Unknown Exits Taken 2 | 1 1 . . . Scrap Searched . | . . . . . Spaces Dug . | . . . . . Terrain Destroyed 5 | . . . 5 . Melee . | . . . . . Projectile . | . . . . . AOE 5 | . . . 5 . Terrain Rammed . | . . . . . Walls Destroyed . | . . . . . Machines Disabled . | . . . . . Actions | -11 -10 -9 -9 -9 --------- Run | Yrd Mat Mat Min Exi Total 1853 | 73 778 650 148 204 Wait 178 | . 104 71 3 . Move 1419 | 59 564 496 100 200 Hop . | . . . . . Pick Up 59 | 8 34 13 3 1 Fast Attach 1 | 1 . . . . Attach 40 | 5 13 12 9 1 Detach . | . . . . . Swap 7 | . 6 . 1 . Drop 27 | . 20 5 . 2 Fire 120 | . 36 53 31 . Melee . | . . . . . Ram 1 | . 1 . . . Kick . | . . . . . Crush 1 | . . . 1 . Escape Stasis . | . . . . . Rewire . | . . . . . Trap . | . . . . . Miscellaneous . | . . . . . Route ------- -11/Scrapyard -10/Materials (discovered 5 exits: *Mat x3 / [*Min x2]) -9/Materials (discovered 4 exits: *Mat / *Min x2 / *Sto) -9/Mines (discovered 2 exits: *Mat / *Exi) -9/Exiles (discovered 2 exits: *Min x2) History --------- Turn | Location | Event 17 | -11/Scrapyard | Discovered new exit (range 16) 64 | -11/Scrapyard | Entered Materials 115 | -10/Materials | Discovered new exit (range 18) 314 | -10/Materials | Build established: Mutant 409 | -10/Materials | Discovered new exit (range 8) 477 | -10/Materials | Discovered new exit (range 15) 762 | -10/Materials | Discovered new exit (range 4) 1471 | -10/Materials | Discovered new exit (range 8) 1904 | -10/Materials | Entered another Materials area 1904 | -9/Materials | Evolved 2 slots: Propulsion x1, Utility x1 2361 | -9/Materials | Discovered new exit (range 16) 2437 | -9/Materials | Identified exit to Mines 2581 | -9/Materials | Discovered new exit (range 16) 2641 | -9/Materials | Build established: Scavenger-Mutant 2685 | -9/Materials | Identified exit to Materials 2926 | -9/Materials | Discovered new exit (range 13) 2955 | -9/Materials | Identified exit to Storage 3259 | -9/Materials | Discovered exit to Mines (range 6) 3309 | -9/Materials | Entered Mines 3476 | -9/Mines | Core integrity fell below 50% 3505 | -9/Mines | Discovered exit to Materials (range 9) 3527 | -9/Mines | Lost 9 parts (1p3n1u4w) 3642 | -9/Mines | Deemed a non-threat by the Exiles lab entrance 3642 | -9/Mines | Discovered new exit (range 5) 3647 | -9/Mines | Identified exit to Exiles 3649 | -9/Mines | Entered Exiles 3676 | -9/Exiles | Discovered new exit (range 14) 3691 | -9/Exiles | Identified exit to Mines 3719 | -9/Exiles | Met 8R-AWN 3736 | -9/Exiles | Met EX-HEX 3784 | -9/Exiles | Met EX-DEC 3829 | -9/Exiles | Learned location of Zion (-7) 3895 | -9/Exiles | Discovered exit to Mines (range 10) 3902 | -9/Exiles | Self-destructed Last Messages --------------- immediately after. What is going on up there... >>Record "MSG004474-01" The Merchants threatened to send a debt collector if we don't pay up for the last shipment. Did someone not pay them in full, or are we getting on their bad side for some reason? We don't want to be on their bad side. >>Record "MSG004742-01" I don't think we can trust Data Miner anymore. For a while now the data we've been getting from that quarter seems anything but impartial. >>Record "MSG004795-01" Could someone repair the Mines activity scanner? It seems to fail sometimes, and when it does we can't send 8R-AWN out on exploratory runs. >>Record "MSG004795-02" I just repaired it not long ago, I think someone on the outside is tampering with our system. --AM-PHS >>Record "MSG004964-01" Who left my Assembled plushie in the Analyzer again?! I'm not erasing this message until I get an answer. --BIN 03895_ EXIT=FOUND: MINES Map ----- +----------------------------------------------------+ | | | ??????????????????????????????????????????? | | ??????????????????????????????????????????? | | ??????????????????????????????????????????? | | ??????????????????????????????????????????? | | ??????????????????????????????????????????? | | ??????????????????????????????????????????? | | ??????????????????????????????????????????? | | ??????????????????????????????????????????? | | ??????????????????????????????????????????? | | ??????????????????????????????????????????? | | ??????????????????????????????????????????? | | ??????????????????????????????????????????? | | ??????????????????????????????????????????? | | ??????????????????????????????????????????? | | ??????????????????????????????????????????? | | ??????????????????????????????????????????? | | ????????????????#####?????????????????????? | | ???????????????## ##????????????????????? | | ???????????????# #????????????????????? | | ???????????????# > #????????????????????? | | ???????????????# ###??????????????????? | | ???????????????# #??????????????????? | | ???????????????# #???????????????????? | | ????????????????# #???????????????????? | | ????????????????# @ ##??????????????????? | | ????????????????## #????????????####### | | ?????????????????# #######??????#!!! "# | | ?????????????????# #""##?????# "# | | ?????????????????## #?????# "# | | ??????????????????##" ##???## ""# | | ??????????????????#"" #####" ""# | | ??????????????????#### ##" ""# | | ?????????????????????## #"" #?? | | ??????????????????????#"## #?? | | ??????????????????????####### ##? | | ????????????????????????????### "#? | | ??????????????????????########" ## | | ??????????????????????# !!""""" | | ??????????????????????#! "###"" | | ??????????????????????#! "#?##" | | ??????????????????????#! ##??#" | | ??????????????????????# !""""""###???#"# | | ??????????????????????##########?????#### | | ????????????????????????????????????????### | | ??????????????????????????????????????????# | | ??????????????????????????????????????????? | | ??????????????????????????????????????????? | | ??????????????????????????????????????????? | | ??????????????????????????????????????????? | +----------------------------------------------------+ Best States ------------- Heat Dissipation 28 Energy Generation 12 Energy Capacity 265 Matter Stores 300 Matter Capacity 300 Sight Range 16 Terrain Scan Density 10 Armor Coverage 225 Evasion (%) 50 Recoil Reduction 3 Item Schematics ----------------- Shield Generator | -9/Materials | Scanalyzed Robot Schematics ------------------ None Fabricated ------------ Nothing Alien Tech Used ----------------- None Achievements -------------- Universal Adapter Challenges ------------ None Game ------ Seed FlyingSigixStick Manual? 0 Play Time 00:43:55 Cumulative 10.8 hours Start 2024.08.09 @ 15:39:12 End 2024.08.09 @ 16:59:32 Sessions 1 Manual Loads 0 Difficulty Rogue Special Mode None Game No. 21 Rogue 4 Adventurer 17 Explorer 0 Win Type - Total 0 Types 0/0/0/0/0/0/0/0/0 Lore% 8 Gallery% 11 Achievement% 14 Wizard Run 0 Options --------- Layout 0 ASCII 0 Keyboard 0 Movement Mouse Keybinds 0 Fullscreen 1 Font 18/SmallcapsGlow Map View 76x50 Zoom Use 0% Tactical HUD 1 Map Filters NONE Filters NONE Steam 1 RUN: a4125def-688e-465d-95aa-893d42feb7b7